Cogmind - Beta 15 @@@ ROGUE MODE // 2025.06.06 @ 22:48:06 Player: A Certain Magical Minus Result: Destroyed by exploding Nuclear Reactor Performance ------------- Evolutions (0) 0 Regions Visited (1) 200 Robots Destroyed (16) 80 Value Destroyed (449) 449 Prototype IDs (0) 0 Alien Tech Used (0) 0 Bonus (0) 0 TOTAL SCORE: 729 Bonus ------- None Cogmind --------- Core Integrity 0/250 Matter 292/300 Energy 300/300 System Corruption 0% Temperature Cool (0) Movement Core (400) Ox7 Location -10/Materials Parts ------- > --- POWER (1) -------- (None) > --- PROPULSION (2) --- (None) > --- UTILITY (2) ------ Large Storage Unit Large Battery > --- WEAPON (2) ------- (None) > --- INVENTORY (15) --- Ion Engine Light Ion Engine Heat Sink Seismic Detector Peak State ------------ > --- POWER ------------ Light Ion Engine > --- PROPULSION ------- Aluminum Leg Aluminum Leg > --- UTILITY ---------- Large Battery Large Battery > --- WEAPON ----------- Medium Laser Light Assault Rifle > --- INVENTORY -------- Aluminum Leg Grenade Launcher [Rating: 7] Favorites ----------- Power Light Ion Engine Engine Light Ion Engine Propulsion Aluminum Leg Leg Aluminum Leg Utility Large Battery Storage Large Battery Weapon Grenade Launcher Energy Gun Medium Laser Ballistic Gun Light Assault Rifle Ballistic Cannon Light Cannon Launcher Grenade Launcher Build | -11 -10 ------- Run | Yrd Mat Slots Evolved . | . . Power . | . . Propulsion . | . . Utility . | . . Weapon . | . . Parts Attached 13 | 5 8 Power 2 | 1 1 Engine 2 | 1 1 Core . | . . Reactor . | . . Propulsion 3 | 2 1 Treads . | . . Leg 3 | 2 1 Wheel . | . . Hover . | . . Flight . | . . Utility 4 | . 4 Device . | . . Storage 4 | . 4 Processor . | . . Hackware . | . . Protection . | . . Artifact . | . . Weapon 4 | 2 2 Energy Gun 1 | 1 . Energy Cannon . | . . Ballistic Gun 1 | 1 . Ballistic Cannon 1 | . 1 Launcher 1 | . 1 Special Weapon . | . . Impact Weapon . | . . Slashing Weapon . | . . Piercing Weapon . | . . Special Melee Weapon . | . . Unidentified Prototypes . | . . Parts Lost 7 | . 7 Power 1 | . 1 Propulsion 3 | . 3 Utility . | . . Weapon 3 | . 3 Highest Loss Streak 7 | . 7 To Critical Strikes . | . . Average Backups 3 | . 3 Power . | . . Propulsion . | . . Utility . | . 1 Weapon . | . . Tool/Special . | . . Unused Backups 5 | . 5 Power 3 | . 3 Propulsion . | . . Utility 2 | . 2 Weapon . | . . Tool/Special . | . . Average Slot Usage (%) 94 | . 94 Engine 13 | . 13 Leg 27 | . 27 Storage 24 | . 24 Energy Gun 1 | . 1 Ballistic Gun 3 | . 3 Ballistic Cannon 10 | . 10 Launcher 11 | . 11 Peak Build Rating 7 | 5 7 Average Rating 6 | 4 6 On Entrance 2 | . 5 Naked Turns . | . . Heaviest Build 34 | 6 34 Greatest Support 20 | 20 20 Greatest Overweight (x) 9 | . 9 Average Overweight (x) . | . . Largest Inventory Capacity 15 | 5 15 Average Capacity 9 | 5 10 Most Carried 6 | 1 6 Average Carried 3 | . 3 Final Capacity 15 | 5 15 Final Carried 4 | 1 4 Class Distribution -------------------- 100% | Mutant Dominant Class ---------------- Mutant | -10/Materials Resources | -11 -10 ----------- Run | Yrd Mat Matter Collected 587 | 257 330 Remotely . | . . Salvage Created 387 | 50 337 Parts 23 | 2 21 Haulers Intercepted 1 | . 1 Recyclers Shooed 2 | . 2 Parts Field Recycled . | . . Retrieved Matter . | . . Parts Self-Destructed . | . . Prevented . | . . Kills | -11 -10 ------- Run | Yrd Mat Combat Hostiles Destroyed 8 | 1 7 Guns 1 | 1 . Cannons 1 | . 1 AOE 6 | . 6 Classes Destroyed 5 | 1 4 Hauler 1 | . 1 Recycler 2 | . 2 Operator 3 | . 3 Watcher 2 | . 2 Grunt 8 | 1 7 Best Kill Streak 6 | 1 6 Combat Bots Only 3 | 1 3 Max Kills in Single Turn 2 | 1 2 Gunslinging . | . . Exploded 2 | . 2 Melee . | . . Uniques/NPCs Destroyed . | . . Combat | -11 -10 -------- Run | Yrd Mat Hostile Shots Fired 75 | 8 67 Missed 26 | 1 25 Hits 49 | 7 42 Projectile 49 | 7 42 Damage Taken 936 | 73 863 Core 287 | 33 254 Absorbed by Shields . | . . Core Remaining (%) 86 | 86 . Volleys Fired 30 | 7 23 Largest 2 | 2 2 Hottest 70 | 70 60 Shots Fired 57 | 14 43 Gun 19 | 14 5 Cannon 18 | . 18 Launcher 20 | . 20 Special . | . . Kinetic 30 | 7 23 Thermal 7 | 7 . Explosive 20 | . 20 Electromagnetic . | . . Robot Hit Streak 7 | 3 7 Robot Miss Streak 4 | 2 4 Penetration Max . | . . Secondary Targets . | . . Shots Hit Robots 27 | 6 21 Core Hits 35 | 2 33 Critical Kills . | . . Critical Parts Destroyed . | . . Critical Strikes . | . . Melee Attacks . | . . Impact . | . . Slashing . | . . Piercing . | . . Sneak Attacks . | . . Combat Hostiles . | . . Follow-up Attacks . | . . Damage Inflicted 1209 | 76 1133 Guns 90 | 75 15 Cannons 172 | . 172 Explosions 946 | . 946 Melee . | . . Ramming 1 | 1 . Kinetic 212 | 25 187 Thermal 50 | 50 . Explosive 946 | . 946 Electromagnetic . | . . Impact . | . . Slashing . | . . Piercing . | . . Highest Corruption . | . . Average Corruption . | . . Corruption Purged . | . . Corruption Blocked . | . . Overload Shots . | . . Overflow Damage 36 | . 36 Projectiles . | . . Explosions 36 | . 36 Melee . | . . Knockbacks 5 | . 5 Impact . | . . Kinetic 5 | . 5 Secondary . | . . Self-Inflicted Damage 231 | . 231 Shots 8 | . 8 Rammed . | . . Targets Rammed 1 | 1 . Kicked 1 | 1 . Crushed . | . . Highest Temperature 142 | 142 28 Average Temperature 40 | 71 11 Received Heat Transfer 309 | 42 267 Siege Activations . | . . Martial Activations . | . . Shielding Activations . | . . Robots Disrupted . | . . Combat Hostiles . | . . Robots Corrupted . | . . Combat Hostiles . | . . Parts Fried . | . . Impact Corruptions . | . . Robots Melted . | . . Combat Hostiles . | . . Parts Melted . | . . Heat Transferred 148 | 148 . Parts Sabotaged . | . . Parts Stolen . | . . Parts Stripped . | . . Power Chain Reactions . | . . Alert | -11 -10 ------- Run | Yrd Mat Maximum Alert Level 1 | . 1 Low Security (%) 55 | 100 40 Level 1 44 | . 59 Level 2 . | . . Level 3 . | . . Level 4 . | . . Level 5 . | . . High Security . | . . Max Security . | . . Peak Influence 324 | 20 324 Initial . | . . Average 140 | 1 187 Influence Increases 510 | 20 490 Destroy 0b10 Robot/C 160 | 20 140 Destroy 0b10 Robot/NC 40 | . 40 Destroy Leader 46 | . 46 Successful Hack 2 | . 2 Disable Machine 105 | . 105 Destroy Structure 157 | . 157 Influence Decreases 352 | 20 332 Time Decay 282 | 20 262 Lost Part 70 | . 70 Squads Dispatched 5 | . 5 Investigation 3 | . 3 Extermination . | . . Reinforcement 2 | . 2 Assault . | . . Garrison . | . . Intercept . | . . Searches Triggered . | . . Construction Impeded . | . . Haulers Reinforced . | . . Active Scanning Responses . | . . Cargo Convoy Interrupts . | . . Stealth | -11 -10 --------- Run | Yrd Mat Distress Signals 2 | . 2 Communications Jammed . | . . Distress Signals . | . . Times Spotted 17 | 1 16 Peak Tracking Total 5 | 1 5 Tactical Retreats . | . . Traps | -11 -10 ------- Run | Yrd Mat Traps Triggered 2 | . 2 Indirectly . | . . Trap Hack Attempts . | . . Triggered . | . . Disarmed . | . . Reprogrammed . | . . Reused . | . . Traps Extracted . | . . Installed . | . . Triggered . | . . Machines | -11 -10 ---------- Run | Yrd Mat Machines Disabled 7 | . 7 Max in Single Turn 2 | . 2 Machines Repaired . | . . Machines Dismantled . | . . Machines Sabotaged . | . . Overloaded Fab Kills . | . . Hacking | -11 -10 --------- Run | Yrd Mat Machines Accessed 4 | . 4 Terminals 3 | . 3 Fabricators . | . . Repair Stations . | . . Recycling Units 1 | . 1 Scanalyzers . | . . Garrison Access . | . . Total Hacks 8 | . 8 Successful 5 | . 5 Failed 3 | . 3 Catastrophic . | . . Database Lockouts . | . . Manual . | . . Terminals 7 | . 7 Fabricators . | . . Repair Stations . | . . Recycling Units 1 | . 1 Scanalyzers . | . . Garrison Access . | . . Terminal Hacks 5 | . 5 Record 5 | . 5 Fabricator Hacks . | . . Repair Station Hacks . | . . Recycling Unit Hacks . | . . Scanalyzer . | . . Garrison Access Hacks . | . . Unauthorized Hacks . | . . Terminals . | . . Fabricators . | . . Repair Stations . | . . Recycling Units . | . . Scanalyzers . | . . Garrison Access . | . . Data Cores Recovered 1 | . 1 Used . | . . Hacking Detections 4 | . 4 Full Trace Events 2 | . 2 Feedback Events . | . . Feedback Blocked . | . . Robot Schematics Acquired . | . . Robots Built . | . . Authchips . | . . Time . | . . Total Robot Build Rating . | . . Part Schematics Acquired . | . . Parts Built . | . . Authchips . | . . Time . | . . Total Part Build Rating . | . . Parts Repaired . | . . Time . | . . Parts Recycled . | . . Recycled Matter . | . . Retrieved Matter . | . . Retrieved Components . | . . Parts Scanalyzed . | . . Part Schematics Acquired . | . . Parts Damaged . | . . Bothacking | -11 -10 ------------ Run | Yrd Mat Used RIF Installer . | . . Robots Hacked . | . . Non-combat . | . . Combat . | . . Robot Hacks Applied . | . . Relay Couplers Released . | . . Fabnet Peak Effective % . | . . Robots Rewired . | . . Allies Hacked . | . . Hacks Repelled . | . . Allies | -11 -10 -------- Run | Yrd Mat Total Allies . | . . Largest Group . | . . Highest-Rated Group . | . . Highest-Rated Ally . | . . Total Orders . | . . Ally Attacks . | . . Total Damage . | . . Kills . | . . Allies Corrupted . | . . Allies Melted . | . . Intel | -11 -10 ------- Run | Yrd Mat Active Infowar (turns) . | . . Robot Analysis Total . | . . Derelict Logs Recovered . | . . Drone Launches . | . . Drone Recoveries . | . . Exploration | -11 -10 ------------- Run | Yrd Mat Turns Passed 934 | 235 699 Spaces Moved 575 | 182 393 Core 24 | 22 2 Treads . | . . Legs 551 | 160 391 Wheels . | . . Hover . | . . Flight . | . . Fastest Speed 50 | 50 120 Average Speed 140 | 111 154 Slowest Speed 500 | 120 500 Overloaded Moves . | . . Propulsion Burnouts . | . . Robots Hopped . | . . Potential Cave-ins . | . . Cave-ins Triggered . | . . Exploration Rate (%) 37 | 11 63 Regions Visited 1 Branch Regions . Pre-discovered Areas . | . . Known Exits Taken . | . . Unknown Exits Taken 1 | 1 . Scrap Searched . | . . Spaces Dug 6 | . 6 Terrain Destroyed 168 | . 168 Melee . | . . Projectile . | . . AOE 168 | . 168 Terrain Rammed . | . . Walls Destroyed . | . . Machines Disabled . | . . Actions | -11 -10 --------- Run | Yrd Mat Total 646 | 201 445 Wait 4 | 1 3 Move 574 | 181 393 Hop . | . . Pick Up 18 | 6 12 Fast Attach . | . . Attach 13 | 5 8 Detach . | . . Swap 1 | . 1 Drop 5 | . 5 Fire 30 | 7 23 Melee . | . . Ram . | . . Kick 1 | 1 . Crush . | . . Escape Stasis . | . . Rewire . | . . Trap . | . . Miscellaneous . | . . Route ------- -11/Scrapyard -10/Materials (discovered 2 exits: [*Mat x2]) History --------- Turn | Location | Event 2 | -11/Scrapyard | Met Revision 17 77 | -11/Scrapyard | Discovered new exit (range 8) 236 | -11/Scrapyard | Entered Materials 349 | -10/Materials | Build established: Mutant 383 | -10/Materials | Discovered new exit (range 8) 637 | -10/Materials | Discovered new exit (range 14) 920 | -10/Materials | Core integrity fell below 50% 935 | -10/Materials | Destroyed by exploding Nuclear Reactor Last Messages --------------- K-01 Serf cleans the Atomic Centrifuge. K-01 Serf cleans the Nuclear Reactor. Triggered Alarm Trap. An alarm sounds. ALERT: Alarm triggered, dispatching investigation squad. Lgt. Cannon destroyed. Aluminum Leg destroyed. Grenade Launcher destroyed. Ion Engine destroyed. Lgt. Assault Rifle destroyed. G-34 Mercenary destroyed. U-05 Engineer lays Concrete. U-05 Engineer builds a Wall. Nuclear Reactor explodes. M-13 Machinist destroyed. Aluminum Leg destroyed. Nuclear Reactor explodes. G-34 Mercenary destroyed. Atomic Centrifuge disabled. Map ----- +----------------------------------------------------+ | = # """"" #?????????? ????????????? | | ! """"" #?????????? ????????????? | | ## """ #?????????? ????????????? | | ## #?????????# ????????????? | | ## #?????????# ????????????? | | ###+######?????????# ????????????? | | #???????????# #???????????? | | ######??????# #???????????? | | ### ###????# #???????????? | | #### #????# #???????????? | | ##+##### #??### ###?????????? | | # # #??# ##+###????? | | # " " #??# #????? | | # ! """ #??# ^ #????? | | # #??# % #????? | | # ! ########## #????? | | # # # """"" # #????? | | ##+##### ## """"" # #????? | | ! ## ## """"" # ^ #????? | | """ ## ## #^ #????? | | """" # # % * # #????? | | """ # #######+## #????? | | ! ## ### # #????? | | # #+! # u #????? | | * ## ^ #????? | | #######+# @ #????? | | ! ### * # | | #### ## =### """ g # | | ##### # ###?? """ !% # | | #??## #?????""" # # | | ????#! !#?????"""?# # | | ????##!!!!##?????""??# " # | | ?????######?????? ???#| """ # | | ?????????????????????# """ # | | ?????????????????????# # | | ?????????????????????# # | | ?????????????????????############ ? | | ????##########??????????????????? ??? | | ????# #???????????????????????? | | ????# #???????????????????????? | | ##### #???????????????????????? | | # #???????????????????????? | | #???????????????????????? | | #???????????????????????? | | ## #???????????????????????? | | ## #???????????????????????? | | ?# # #???????????????????????? | | ?## ##+##+####???????????????????????? | | ??# #??????????????????????????? | | ??# #??????????????????????????? | +----------------------------------------------------+ Best States ------------- Heat Dissipation 25 Energy Generation 10 Energy Capacity 525 Matter Stores 300 Matter Capacity 300 Sight Range 16 Terrain Scan Density 10 Evasion (%) 55 Item Schematics ----------------- None Robot Schematics ------------------ None Fabricated ------------ Nothing Repaired ---------- Nothing Alien Tech Used ----------------- None Achievements -------------- Loot Pinata One Hack Too Far Challenges ------------ None Game ------ Seed CouplerAblativeRouter Manual? 0 Play Time 00:16:38 Cumulative 0.9 hours Start 2025.06.06 @ 22:27:37 End 2025.06.06 @ 22:48:06 Sessions 1 Manual Loads 0 Difficulty Rogue Special Mode None Game No. 3 Rogue 3 Adventurer 0 Explorer 0 Win Type - Total 0 Types 0/0/0/0/0/0/0/0/0/0 Lore% 0 Gallery% 2 Achievement% 2 Wizard Run 0 Options --------- Layout 1 ASCII 0 Keyboard 0 Movement Mouse Keybinds 0 Fullscreen 1 Font 24/Smallcaps Map View 25x17 Zoom Use 96% Tactical HUD 0 Map Filters NONE Filters NONE Steam 1 RUN: 21e23d5e-6305-4192-9216-cbeca6fa82b0